fUSD/lending_fUSD_20250724
["ID","MTS","AMOUNT","RATE_DAILY","PERIOD"]
[374647680,1753398646589,-432.73,0.00032297,10]
[374647681,1753398646599,-1904.19,0.00032297,10]
[374647682,1753398646609,-2170.08,0.00032297,10]
[374647683,1753398646619,-400.0,0.00032297,10]
[374647684,1753398646629,-2827.13,0.00032297,10]
[374647685,1753398646640,-2063.56,0.00032297,10]
[374647686,1753398646651,-1269.51158417,0.00032297,2]
[374647687,1753398646687,-789.4249966,0.00032297,2]
[374647688,1753398646699,-6601.491851,0.00032297,2]
[374647689,1753398646715,-5066.44595268,0.00032297,2]
[374647690,1753398646726,-2447.13085106,0.00032297,2]
[374647691,1753398700399,1232.7596,0.000207,2]
[374647693,1753398903908,154.66,0.00013699,2]
[374647697,1753399169090,-172.31155124,0.00020699,2]
[374647825,1753399435069,-300.0,0.00020699,2]
[374647867,1753399510394,8163.75939129,0.000154,2]
[374647872,1753399516345,56013.06170596,0.0002,2]
[374647922,1753399595383,-300.0,0.00020188,2]
[374647925,1753399603183,-36.4429,0.00020188,2]
[374647926,1753399619506,500.0,0.0002724,120]
[374647929,1753399647498,500.0,0.0002724,120]
[374647946,1753399668314,500.0,0.0002724,120]
[374647950,1753399693383,500.0,0.0002724,120]
[374647956,1753399712200,499.20822982,0.0002724,120]
[374647976,1753399748323,3545.636384,7.945e-05,2]
[374648007,1753399832480,-224.2952,0.00020394,2]
[374648008,1753399832490,-300.0,0.00020548,2]
[374648009,1753399832500,-211.93971334,0.000206,2]
[374648010,1753399832509,-1828.27796569,0.00020679,2]
[374648011,1753399832519,-224.2952,0.00020699,2]
[374648012,1753399832528,-300.0,0.00020699,2]
[374648013,1753399832538,-300.0,0.00020699,2]
[374648014,1753399832547,-1200.0,0.00020699,2]
[374648015,1753399832557,-1620.42495796,0.000207,2]
[374648016,1753399832570,-7800.75544204,0.000207,2]
[374648018,1753399832580,-224.2952,0.000207,2]
[374648020,1753399832590,-150.0,0.00022,2]
[374648022,1753399832599,-300.0,0.00022523,2]
[374648024,1753399832609,-420.0,0.00022523,2]
[374648026,1753399832618,-300.0,0.00022546,2]
[374648028,1753399832627,-1680.0,0.0002263,2]
[374648029,1753399832636,-250.0,0.0002266,2]
[374648030,1753399832645,-300.0,0.0002266,2]
[374648031,1753399832655,-410.17,0.00022799,2]
[374648033,1753399832664,-150.0,0.0002318,2]
[374648035,1753399832673,-954.0,0.000238,2]
[374648037,1753399832682,-352.06084032,0.00023919,2]
[374648039,1753399832714,-879.93915968,0.00023919,2]
[374648040,1753399832723,-5000.0,0.00024,5]
[374648041,1753399832733,-500.0,0.00024,2]
[374648042,1753399832742,-343.48868899,0.000241,2]
[374648044,1753399832751,-5511.0,0.000245,5]
[374648046,1753399832761,-587.0,0.00024507,2]
[374648048,1753399832770,-410.17,0.00024529,2]
[374648050,1753399832779,-334.0,0.00024632,2]
[374648052,1753399832789,-500.0,0.00024633,2]
[374648054,1753399832798,-500.0,0.00024633,2]
[374648056,1753399832807,-500.0,0.00024633,2]
[374648058,1753399832816,-500.0,0.00024633,2]
[374648060,1753399832827,-295.0565736,0.00024633,2]
[374648062,1753399832836,-500.0,0.00024633,2]
[374648063,1753399832847,-500.0,0.00024633,2]
[374648064,1753399832857,-533.79006202,0.00024633,2]
[374648065,1753399832866,-2351.0,0.00024741,2]
[374648066,1753399832875,-1883.24846025,0.00025,7]
[374648067,1753399832885,-199.74,0.00025763,2]
[374648068,1753399832895,-225.97,0.0002598,2]
[374648069,1753399832904,-1789.98122959,0.00026,2]
[374648070,1753399833225,-413.17,0.00026099,2]
[374648071,1753399833236,-9216.856,0.00026182,2]
[374648072,1753399833246,-231.28369723,0.00026182,2]
[374648073,1753399833256,-410.17,0.0002626,2]
[374648074,1753399833266,-3797.97,0.00026591,10]
[374648075,1753399833275,-9411.16,0.00026591,2]
[374648076,1753399833285,-9557.879672,0.0002673,2]
[374648077,1753399833295,-364.64881981,0.00026944,2]
[374648078,1753399833305,-258.66164719,0.00026963,2]
[374648079,1753399833315,-748.48979531,0.00026967,2]
[374648080,1753399833324,-258.66164719,0.00026967,2]
[374648081,1753399833334,-508.88684373,0.00026973,2]
[374648082,1753399833345,-508.88684373,0.00026993,2]
[374648083,1753399833355,-483.71376228,0.00026999,2]
[374648084,1753399833364,-5000.0,0.00027,2]
[374648085,1753399833374,-508.88684373,0.00027012,2]
[374648086,1753399833383,-391.07270846,0.00027014,2]
[374648087,1753399833393,-364.64881981,0.00027017,2]
[374648088,1753399833402,-748.48979531,0.00027026,2]
[374648089,1753399833412,-748.48979531,0.00027027,2]
[374648090,1753399833421,-391.07270846,0.00027033,2]
[374648091,1753399833431,-2133.0,0.0002705,2]
[374648092,1753399833440,-391.07270846,0.00027052,2]
[374648093,1753399833450,-364.64881981,0.0002708,2]
[374648094,1753399833459,-258.66164719,0.00027082,2]
[374648095,1753399833469,-364.64881981,0.00027082,2]
[374648096,1753399833479,-391.07270846,0.00027088,2]
[374648097,1753399833488,-508.88684373,0.00027089,2]
[374648098,1753399833498,-748.48979531,0.00027094,2]
[374648099,1753399833508,-89.10670033,0.00027097,2]
[374648100,1753399838130,-404.583219,0.00020291,2]
[374648101,1753399838140,-91.58154988,0.00023259,2]
[374648102,1753399838151,-635.79996507,0.00023259,2]
[374648104,1753399838368,-401.60888979,0.00023259,2]
[374648105,1753399838378,-500.0,0.00023769,2]
[374648106,1753399838388,-500.0,0.00023769,2]
[374648107,1753399838398,-500.0,0.00023769,2]
[374648108,1753399838407,-500.0,0.00023769,2]
[374648109,1753399838417,-169.55494686,0.00027097,2]
[374648110,1753399838426,-555.35645717,0.00027278,2]
[374648247,1753399840251,-254.3252706,0.00023769,2]
[374648249,1753399840266,-245.6747294,0.00023769,2]
[374648251,1753399840276,-624.28973097,0.00023769,2]
[374648253,1753399840285,-9356.16476269,0.00027278,2]
[374648255,1753399840296,-239.84119403,0.00027551,2]
[374648257,1753399840305,-163.63,0.00027732,2]
[374648259,1753399840315,-151.0,0.00027825,2]
[374648261,1753399840325,-610.4219416,0.00027825,2]
[374648263,1753399840334,-151.0,0.00027825,2]
[374648265,1753399840344,-315.93849939,0.00027825,2]
[374648268,1753399840355,-600.0,0.00027825,2]
[374648270,1753399840365,-600.0,0.00027825,2]
[374648271,1753399840374,-346.92554585,0.00027825,2]
[374648273,1753399840383,-600.0,0.00027825,2]
[374648275,1753399840392,-600.0,0.00027825,2]
[374648277,1753399840402,-285.22680891,0.00027825,2]
[374648279,1753399840411,-160.0,0.00027825,2]
[374648281,1753399840420,-500.0,0.00027825,2]
[374648283,1753399840430,-500.0,0.00027825,2]
[374648285,1753399840439,-151.0,0.00027825,2]
[374648287,1753399840449,-151.0,0.00027825,2]
[374648289,1753399840458,-151.0,0.00027825,2]
[374648291,1753399840468,-151.0,0.00027825,2]
[374648293,1753399840477,-151.0,0.00027825,2]
[374648295,1753399840486,-500.0,0.00027825,2]
[374648297,1753399840496,-500.0,0.00027825,2]
[374648299,1753399840505,-151.0,0.00027825,2]
[374648302,1753399840515,-500.0,0.00027825,2]
[374648303,1753399840524,-151.0,0.00027825,2]
[374648305,1753399840533,-500.0,0.00027825,2]
[374648307,1753399840543,-151.0,0.00027825,2]
[374648309,1753399840552,-500.0,0.00027825,2]
[374648311,1753399840561,-151.0,0.00027825,2]
[374648313,1753399840570,-500.0,0.00027825,2]
[374648315,1753399840580,-151.0,0.00027825,2]
[374648317,1753399840589,-500.0,0.00027825,2]
[374648319,1753399840599,-151.0,0.00027825,2]
[374648321,1753399840608,-500.0,0.00027825,2]
[374648323,1753399840618,-500.0,0.00027825,2]
[374648325,1753399840628,-151.0,0.00027825,2]
[374648327,1753399840638,-500.0,0.00027825,2]
[374648329,1753399840647,-151.0,0.00027825,2]
[374648331,1753399840657,-151.0,0.00027825,2]
[374648333,1753399840666,-500.0,0.00027825,2]
[374648335,1753399840676,-500.0,0.00027825,2]
[374648337,1753399840685,-500.0,0.00027825,2]
[374648339,1753399840694,-500.0,0.00027825,2]
[374648341,1753399840703,-151.0,0.00027825,2]
[374648343,1753399840712,-151.0,0.00027825,2]
[374648345,1753399840722,-10278.247505,0.00027826,2]
[374648347,1753399840731,-410.17,0.0002799,2]
[374648349,1753399840740,-5073.27075219,0.00028374,2]
[374648351,1753399840750,-67.95533858,0.00028836,2]
[374648353,1753399840762,-82.97466142,0.00028836,2]
[374648355,1753399840772,-248.71531821,0.0002892,2]
[374648357,1753399840781,-150.93,0.00028932,2]
[374648359,1753399840790,-150.93,0.00029028,2]
[374648361,1753399840799,-150.93,0.00029124,2]
[374648363,1753399840809,-156.587,0.00029194,2]
[374648365,1753399840819,-259.19327736,0.00029194,2]
[374648368,1753399840831,-100.56851368,0.00029194,2]
[374648370,1753399840842,-160.0,0.00029194,2]
[374648372,1753399840853,-180.0,0.00029304,7]
[374648374,1753399840863,-422.699,0.00029454,23]
[374648376,1753399840872,-176.74,0.0002946,2]
[374648378,1753399840881,-165.76,0.00029493,2]
[374648380,1753399840892,-171.18,0.00029533,120]
[374648382,1753399840901,-178.28463294,0.000296,2]
[374648384,1753399840911,-200.0,0.00029611,2]
[374648386,1753399840921,-250.0,0.00029713,2]
[374648388,1753399840930,-410.17,0.0002972,2]
[374648390,1753399840939,-541.96,0.0002973,2]
[374648392,1753399840948,-2751.0,0.00029776,2]
[374648394,1753399840958,-1000.0,0.00029801,2]
[374648396,1753399840967,-491.63,0.00029814,2]
[374648398,1753399840976,-3208.95,0.00029822,2]
[374648400,1753399840986,-216.36,0.00029849,30]
[374648402,1753399840997,-430.2,0.00029972,2]
[374648404,1753399841006,-7245.87990245,0.0003,7]
[374648406,1753399841016,-1047.85,0.0003,7]
[374648408,1753399841028,-3200.0,0.0003013,2]
[374648410,1753399841038,-257.91778498,0.00030289,2]
[374648412,1753399841047,-150.0,0.00030402,2]
[374648414,1753399841057,-235.4,0.00030433,2]
[374648416,1753399841068,-373.07297731,0.00030563,2]
[374648418,1753399841078,-160.0,0.00030563,2]
[374648420,1753399841087,-151.0,0.00030564,2]
[374648422,1753399841097,-150.0,0.00030579,2]
[374648424,1753399841107,-150.0,0.00030585,2]
[374648426,1753399841117,-150.0,0.00030585,2]
[374648428,1753399841126,-200.0,0.00030585,2]
[374648430,1753399841136,-500.0,0.00030585,2]
[374648432,1753399841146,-250.0,0.00030585,2]
[374648434,1753399841155,-150.0,0.00030585,2]
[374648436,1753399841165,-17658.48,0.00030603,2]
[374648438,1753399841175,-150.0,0.00030616,2]
[374648439,1753399841184,-167.21,0.00030644,2]
[374648442,1753399841194,-150.0,0.0003069,2]
[374648443,1753399841204,-510.0,0.00030709,2]
[374648446,1753399841214,-1294.95429417,0.00030759,2]
[374648448,1753399841223,-150.0,0.00030859,2]
[374648449,1753399841232,-500.0,0.00030859,2]
[374648451,1753399841242,-150.0,0.00030859,2]
[374648454,1753399841251,-150.0,0.00030896,2]
[374648455,1753399841260,-1294.95429411,0.00030919,2]
[374648458,1753399841270,-434.94,0.00030921,2]
[374648460,1753399841279,-165.82,0.00030956,2]
[374648461,1753399841289,-336.50075427,0.00031,4]
[374648463,1753399841298,-150.0,0.0003107,2]
[374648465,1753399841307,-1294.95429411,0.00031078,2]
[374648467,1753399841316,-252.51600869,0.00031133,2]
[374648469,1753399841326,-500.0,0.00031133,2]
[374648471,1753399841335,-250.0,0.00031133,2]
[374648473,1753399841346,-150.0,0.00031152,2]
[374648475,1753399841356,-1294.95429411,0.00031238,2]
[374648477,1753399841365,-150.0,0.00031242,2]
[374648480,1753399841374,-167.33,0.00031273,2]
[374648481,1753399841384,-154.66,0.00031311,2]
[374648483,1753399841393,-150.0,0.00031363,2]
[374648486,1753399841402,-1294.95429411,0.00031398,2]
[374648487,1753399841412,-500.0,0.00031407,2]
[374648489,1753399841421,-150.0,0.00031422,2]
[374648492,1753399841430,-410.17,0.00031451,2]
[374648493,1753399841439,-150.0,0.00031458,2]
[374648495,1753399841448,-150.0,0.00031463,2]
[374648497,1753399841459,-430.2,0.00031471,2]
[374648499,1753399841469,-150.0,0.00031477,2]
[374648501,1753399841479,-370.754523,0.00031515,30]
[374648503,1753399841488,-199.72,0.00031533,2]
[374648505,1753399841498,-199.74,0.00031546,2]
[374648507,1753399841507,-1294.95429411,0.00031557,2]
[374648509,1753399841517,-235.4,0.00031574,2]
[374648511,1753399841526,-500.0,0.00031574,2]
[374648513,1753399841535,-150.0,0.00031574,2]
[374648515,1753399841545,-500.0,0.00031574,2]
[374648517,1753399841554,-150.0,0.00031574,2]
[374648520,1753399841564,-310.83,0.00031578,2]
[374648522,1753399841574,-267.46074303,0.00031658,2]
[374648523,1753399841583,-500.0,0.00031681,2]
[374648525,1753399841592,-1294.95429411,0.00031717,2]
[374648527,1753399841603,-150.0,0.00031751,2]
[374648529,1753399841612,-150.0,0.00031758,2]
[374648530,1753399841621,-500.0,0.00031758,2]
[374648531,1753399841630,-500.0,0.00031758,2]
[374648532,1753399841640,-200.0,0.00031758,2]
[374648533,1753399841649,-225.97,0.0003177,2]
[374648534,1753399841659,-150.0,0.00031798,2]
[374648535,1753399841668,-150.0,0.00031803,2]
[374648536,1753399841677,-576.08017575,0.00031848,2]
[374648537,1753399841687,-150.0,0.00031848,2]
[374648538,1753399841696,-500.0,0.00031848,2]
[374648540,1753399841705,-150.0,0.00031848,2]
[374648542,1753399841715,-1294.95429411,0.00031877,2]
[374648544,1753399841724,-150.0,0.00031897,2]
[374648546,1753399841733,-150.0,0.00031929,2]
[374648548,1753399841742,-386.87667747,0.00031932,2]
[374648550,1753399841751,-160.0,0.00031932,2]
[374648552,1753399841761,-500.0,0.00031955,2]
[374648554,1753399841770,-199.74,0.00031959,2]
[374648556,1753399841779,-68878.87626278,0.00031999,2]
[374648558,1753399841789,-1000.0,0.00032,120]
[374648560,1753399841799,-500.0,0.00032014,7]
[374648562,1753399841808,-150.0,0.00032029,2]
[374648564,1753399841818,-200.0,0.00032032,2]
[374648566,1753399841828,-500.0,0.00032032,2]
[374648567,1753399841837,-500.0,0.00032032,2]
[374648569,1753399841846,-200.0,0.00032036,2]
[374648572,1753399841857,-1294.95429411,0.00032036,2]
[374648573,1753399841866,-154.28,0.00032059,2]
[374648576,1753399841876,-225.97,0.00032076,2]
[374648578,1753399841886,-2266.71773,0.0003208,2]
[374648579,1753399841895,-150.0,0.00032101,2]
[374648581,1753399841905,-150.0,0.00032113,2]
[374648583,1753399841914,-150.0,0.00032122,2]
[374648585,1753399841924,-556.54055567,0.00032122,2]
[374648587,1753399841933,-150.0,0.00032122,2]
[374648589,1753399841942,-413.17,0.00032135,2]
[374648591,1753399841951,-150.0,0.00032171,2]
[374648593,1753399841960,-156.82216639,0.00032183,4]
[374648595,1753399841970,-431.51903868,0.00032184,2]
[374648597,1753399841979,-712.4,0.00032186,10]
[374648599,1753399841988,-1618.21,0.00032186,10]
[374648601,1753399841998,-400.0,0.00032186,10]
[374648603,1753399842007,-1933.0,0.00032186,10]
[374648605,1753399842016,-2707.98,0.00032186,10]
[374648607,1753399842029,-467.5,0.00032186,10]
[374648609,1753399842039,-1740.19,0.00032186,10]
[374648611,1753399842048,-3202.42,0.00032186,10]
[374648613,1753399842057,-2406.85,0.00032186,10]
[374648615,1753399842067,-673.47,0.00032186,10]
[374648617,1753399842076,-400.0,0.00032186,10]
[374648619,1753399842085,-857.01,0.00032186,10]
[374648621,1753399842097,-1535.01,0.00032186,10]
[374648623,1753399842106,-400.0,0.00032186,10]
[374648625,1753399842115,-711.13,0.00032186,10]
[374648627,1753399842125,-400.0,0.00032186,10]
[374648629,1753399842134,-1006.66,0.00032186,10]
[374648631,1753399842143,-509.76,0.00032186,10]
[374648633,1753399842153,-400.0,0.00032186,10]
[374648635,1753399842162,-1488.9,0.00032186,10]
[374648637,1753399842171,-400.0,0.00032186,10]
[374648639,1753399842180,-400.0,0.00032186,10]
[374648641,1753399842189,-400.0,0.00032186,10]
[374648643,1753399842199,-3017.24,0.00032186,10]
[374648645,1753399842208,-431.5190386,0.00032186,2]
[374648647,1753399842217,-431.5190386,0.00032188,2]
[374648649,1753399842229,-431.5190386,0.00032191,2]
[374648651,1753399842239,-431.5190386,0.00032193,2]
[374648652,1753399842248,-431.5190386,0.00032195,2]
[374648655,1753399842259,-1294.95429411,0.00032196,2]
[374648656,1753399842268,-23275.1997,0.00032197,2]
[374648658,1753399842278,-431.5190386,0.00032197,2]
[374648661,1753399842287,-151.62491514,0.00032198,2]
[374648663,1753399842299,-431.5190386,0.000322,2]
[374648664,1753399842308,-431.5190386,0.00032202,2]
[374648666,1753399842319,-431.5190386,0.00032204,2]
[374648668,1753399842328,-10000.0,0.00032206,2]
[374648670,1753399842338,-157.9184532,0.00032207,2]
[374648672,1753399842347,-2266.71773,0.0003221,2]
[374648674,1753399842356,-500.0,0.00032229,2]
[374648676,1753399842366,-413.17,0.0003226,2]
[374648678,1753399842375,-4626.05630554,0.00032264,2]
[374648681,1753399842384,-309.21,0.00032264,2]
[374648682,1753399842394,-350.0,0.00032265,2]
[374648685,1753399842403,-14016.5724863,0.00032266,2]
[374648687,1753399842412,-14016.5724863,0.00032267,2]
[374648689,1753399842421,-274.96678475,0.00032267,2]
[374648691,1753399842430,-500.0,0.00032273,5]
[374648692,1753399842440,-500.0,0.00032273,5]
[374648694,1753399842450,-500.0,0.00032273,5]
[374648696,1753399842459,-159.13754522,0.00032273,5]
[374648698,1753399842468,-500.0,0.00032273,5]
[374648700,1753399842477,-500.0,0.00032273,2]
[374648702,1753399842486,-343.915208,0.00032273,5]
[374648704,1753399842496,-500.0,0.00032273,5]
[374648706,1753399842505,-712.4,0.00032273,10]
[374648708,1753399842514,-1618.21,0.00032273,10]
[374648710,1753399842523,-400.0,0.00032273,10]
[374648712,1753399842532,-1933.0,0.00032273,10]
[374648714,1753399842541,-2707.98,0.00032273,10]
[374648716,1753399842549,-467.5,0.00032273,10]
[374648718,1753399842558,-400.0,0.00032273,10]
[374648720,1753399842567,-1740.19,0.00032273,10]
[374648722,1753399842576,-3202.42,0.00032273,10]
[374648724,1753399842585,-2406.85,0.00032273,10]
[374648726,1753399842594,-673.47,0.00032273,10]
[374648728,1753399842604,-400.0,0.00032273,10]
[374648730,1753399842613,-857.01,0.00032273,10]
[374648732,1753399842622,-1535.01,0.00032273,10]
[374648734,1753399842631,-400.0,0.00032273,10]
[374648736,1753399842639,-711.13,0.00032273,10]
[374648738,1753399842648,-400.0,0.00032273,10]
[374648740,1753399842658,-1006.66,0.00032273,10]
[374648742,1753399842667,-509.76,0.00032273,10]
[374648744,1753399842675,-400.0,0.00032273,10]
[374648746,1753399842684,-1488.9,0.00032273,10]
[374648748,1753399842694,-400.0,0.00032273,10]
[374648750,1753399842702,-400.0,0.00032273,10]
[374648752,1753399842711,-400.0,0.00032273,10]
[374648754,1753399842720,-175833.71117982,0.00032273,17]
[374648756,1753399842728,-4279.19215518,0.00032273,61]
[374648758,1753399842738,-84099.4349178,0.00032274,2]
[374648760,1753399842746,-8413.01769897,0.00032274,2]
[374648763,1753399842768,-1072.28009501,0.00032273,10]
[374648765,1753399842779,-1944.95990499,0.00032273,10]
[374648767,1753399842788,-1776.04003501,0.00032274,2]
[374648770,1753399842800,-433.43153485,0.00032274,2]
[374648779,1753399842876,-1726.00720309,0.00032274,2]
[374648781,1753399842889,-4377.84293225,0.00032274,2]
[374648784,1753399842910,-39339.95054103,0.00032274,2]
[374648786,1753399842923,-31118.3529726,0.00032274,2]
[374648788,1753399842933,-14016.5724863,0.00032274,2]
[374648790,1753399842942,-56066.2899452,0.00032275,2]
[374648792,1753399842951,-62236.7059451,0.00032275,2]
[374648794,1753399842961,-150.0,0.00032275,2]
[374648796,1753399842971,-187.45636459,0.00032275,2]
[374648798,1753399842981,-400.0,0.00032275,10]
[374648800,1753399842990,-676.62,0.00032275,10]
[374648802,1753399842999,-400.0,0.00032275,10]
[374648805,1753399843009,-461.33853907,0.00032275,10]
[374648807,1753399843020,-219.32726836,0.00032275,10]
[374648809,1753399843033,-400.0,0.00032275,10]
[374648811,1753399843042,-400.0,0.00032275,10]
[374648813,1753399843052,-400.0,0.00032275,10]
[374648815,1753399843061,-400.0,0.00032275,10]
[374648817,1753399843073,-400.0,0.00032275,10]
[374648819,1753399843082,-400.0,0.00032275,10]
[374648820,1753399843092,-400.0,0.00032275,10]
[374648821,1753399843103,-480.9008621,0.00032275,10]
[374648822,1753399843113,-400.0,0.00032275,10]
[374648823,1753399843122,-400.0,0.00032275,10]
[374648824,1753399843131,-400.0,0.00032275,10]
[374648825,1753399843140,-400.0,0.00032275,10]
[374648826,1753399843149,-392.39954286,0.00032275,10]
[374648827,1753399843163,-1603.8,0.00032275,10]
[374648828,1753399843172,-2465.21,0.00032275,10]
[374648830,1753399843182,-712.4,0.00032275,10]
[374648832,1753399843191,-4354.65,0.00032275,10]
[374648835,1753399843201,-1618.21,0.00032275,10]
[374648836,1753399843211,-890.22,0.00032275,10]
[374648838,1753399843221,-400.0,0.00032275,10]
[374648840,1753399843230,-4205.88,0.00032275,10]
[374648842,1753399843240,-1933.0,0.00032275,10]
[374648845,1753399843250,-3419.57,0.00032275,10]
[374648847,1753399843260,-2707.98,0.00032275,10]
[374648849,1753399843269,-400.0,0.00032275,10]
[374648851,1753399843279,-467.5,0.00032275,10]
[374648852,1753399843289,-400.0,0.00032275,10]
[374648855,1753399843299,-400.0,0.00032275,10]
[374648857,1753399843309,-400.0,0.00032275,10]
[374648858,1753399843319,-1740.19,0.00032275,10]
[374648860,1753399843329,-11357.28,0.00032275,10]
[374648862,1753399843338,-151.0,0.00032275,7]
[374648865,1753399843350,-3202.42,0.00032275,10]
[374648867,1753399843360,-151.0,0.00032275,7]
[374648869,1753399843369,-2242.03,0.00032275,10]
[374648871,1753399843379,-2406.85,0.00032275,10]
[374648873,1753399843388,-400.0,0.00032275,10]
[374648875,1753399843398,-673.47,0.00032275,10]
[374648877,1753399843407,-400.0,0.00032275,10]
[374648879,1753399843417,-3248.85,0.00032275,10]
[374648881,1753399843427,-857.01,0.00032275,10]
[374648882,1753399843436,-1535.01,0.00032275,10]
[374648885,1753399843445,-400.0,0.00032275,10]
[374648887,1753399843455,-151.0,0.00032275,7]
[374648889,1753399843464,-711.13,0.00032275,10]
[374648891,1753399843473,-400.0,0.00032275,10]
[374648893,1753399843482,-1006.66,0.00032275,10]
[374648895,1753399843492,-509.76,0.00032275,10]
[374648897,1753399843502,-7250.68,0.00032275,10]
[374648899,1753399843511,-400.0,0.00032275,10]
[374648901,1753399843521,-1488.9,0.00032275,10]
[374648903,1753399843530,-400.0,0.00032275,10]
[374648905,1753399843539,-400.0,0.00032275,10]
[374648907,1753399843549,-4423.03,0.00032275,10]
[374648909,1753399843558,-400.0,0.00032275,10]
[374648911,1753399843567,-3017.24,0.00032275,10]
[374648913,1753399843577,-48344.40884564,0.00032276,2]
[374648918,1753399843617,-400.0,0.00032186,10]
[374648920,1753399843626,-6067.27015083,0.00032276,2]
[374648922,1753399843639,-1654.61094873,0.00032276,2]
[374648924,1753399843649,-25036.00142683,0.00032276,2]
[374649096,1753399845326,-528.38,0.00032186,10]
[374649098,1753399845338,-400.0,0.00032273,10]
[374649101,1753399845351,-528.38,0.00032273,10]
[374649103,1753399845363,-342.70440931,0.00032275,10]
[374649105,1753399845375,-528.38,0.00032275,10]
[374649107,1753399845385,-3400.04521296,0.00032276,2]
[374649110,1753399845399,-666.82690802,0.00032276,2]
[374649118,1753399845469,-353.92,0.00032276,2]
[374649120,1753399845484,-10014.9736644,0.00032276,2]
[374649123,1753399845497,-2226.08703143,0.00032276,2]
[374649349,1753399848250,-400.0,0.00032186,10]
[374649351,1753399848260,-151.0,0.00032275,7]
[374649353,1753399848270,-383.35,0.00032276,2]
[374649359,1753399848350,-1661.29528536,0.00032276,2]
[374649362,1753399848377,-10714.618173,0.00032276,2]
[374649363,1753399848386,-286.595644,0.00032277,7]
[374649365,1753399848396,-11369.85847263,0.00032277,2]
[374649369,1753399848461,-714.19075267,0.00032277,2]
[374651033,1753400076209,155.48,0.00013699,2]
[374651076,1753401032359,-150.0,0.00022,2]
[374651077,1753401032369,-185.42135183,0.0002288,2]
[374651078,1753401032384,-156.16124371,0.0002298,2]
[374651079,1753401032394,-150.0,0.0002318,2]
[374651080,1753401032403,-185.42135179,0.00023707,2]
[374651081,1753401032413,-191.75,0.00024226,2]
[374651082,1753401032423,-296.0,0.00024366,2]
[374651083,1753401032433,-150.0,0.0002437,2]
[374651084,1753401032443,-185.42135179,0.00024533,2]
[374651085,1753401032454,-185.42135179,0.0002536,2]
[374651086,1753401032464,-150.0,0.0002555,2]
[374651087,1753401032473,-296.0,0.00026097,2]
[374651088,1753401032483,-185.42135179,0.00026186,2]
[374651089,1753401032493,-150.0,0.0002673,2]
[374651090,1753401032503,-185.42135179,0.00027013,2]
[374651091,1753401032512,-300.0,0.00027111,2]
[374651092,1753401032522,-71.18505061,0.00027112,2]
[374651093,1753401032556,-151.81494939,0.00027112,2]
[374651094,1753401032565,-992.31133386,0.00027113,2]
[374651095,1753401032577,-4240.14160761,0.00027113,2]
[374651096,1753401032588,-3984.40305853,0.00027113,2]
[374651097,1753401032598,-231.28369723,0.00027113,2]
[374651098,1753401032608,-175.02,0.00027609,2]
[374651099,1753401032618,-299.66854865,0.00027661,2]
[374651100,1753401032637,-41.35512335,0.00027661,2]
[374651101,1753401032646,-296.0,0.00027827,2]
[374651102,1753401032655,-216.24992088,0.000279,18]
[374651103,1753401032665,-150.0,0.0002792,3]
[374651104,1753401032675,-239.84119403,0.00028482,2]
[374651105,1753401032685,-150.0,0.00029022,7]
[374651106,1753401032695,-150.0,0.00029022,7]